[Event "Titled Tuesday Blitz February 21 Early 2023"]
[White "Ciuffoletti, Paolo"]
[Black "Bozorov, Makhsum"]
[WhiteFideId "807630"]
[BlackFideId "14201330"]
[WhiteElo "2106"]
[BlackElo "2145"]
[Result "1-0"]
[Round "02"]
[TimeControl "180+2"]
[Date "2023.02.21"]
[WhiteClock "0:02:14"]
[BlackClock "0:02:43"]

1. e4 {[%clk 0:03:00]}  c5 {[%clk 0:02:59]} 2. d4 {[%clk 0:03:00]}  cxd4 {[%clk 0:02:58]} 3. c3 {[%clk 0:03:00]}  dxc3 {[%clk 0:02:56]} 4. Nxc3 {[%clk 0:03:00]}  e6 {[%clk 0:02:56]} 5. Nf3 {[%clk 0:03:01]}  Nc6 {[%clk 0:02:57]} 6. Bc4 {[%clk 0:03:00]}  a6 {[%clk 0:02:57]} 7. O-O {[%clk 0:03:00]}  d6 {[%clk 0:02:58]} 8. Qe2 {[%clk 0:03:00]}  b5 {[%clk 0:02:58]} 9. Bb3 {[%clk 0:02:59]}  Ra7 {[%clk 0:02:59]} 10. Be3 {[%clk 0:02:48]}  Rd7 {[%clk 0:02:59]} 11. a4 {[%clk 0:02:26]}  b4 {[%clk 0:02:58]} 12. Nb1 {[%clk 0:02:25]}  Be7 {[%clk 0:02:52]} 13. a5 {[%clk 0:02:22]}  Nf6 {[%clk 0:02:49]} 14. Bb6 {[%clk 0:02:20]}  Rc7 {[%clk 0:02:44]} 15. Ba4 {[%clk 0:02:17]}  Nd7 {[%clk 0:02:43]} 16. Bxc6 {[%clk 0:02:14]} 1-0


[Site "https://www.chess.com"]

[Event "Titled Tuesday Blitz February 21 Early 2023"]
[White "Erzhanov, Arman"]
[Black "Nugumanov, Bakhtiyar"]
[WhiteFideId "4138821"]
[BlackFideId "13701797"]
[WhiteElo "2228"]
[BlackElo "2316"]
[Result "1-0"]
[Round "02"]
[TimeControl "180+2"]
[Date "2023.02.21"]
[WhiteClock "0:01:24"]
[BlackClock "0:00:06"]

1. e4 {[%clk 0:02:59]}  e6 {[%clk 0:02:55]} 2. b3 {[%clk 0:02:55]}  d5 {[%clk 0:02:51]} 3. Bb2 {[%clk 0:02:55]}  dxe4 {[%clk 0:02:45]} 4. Nc3 {[%clk 0:02:55]}  Nf6 {[%clk 0:02:45]} 5. Qe2 {[%clk 0:02:56]}  Be7 {[%clk 0:02:38]} 6. O-O-O {[%clk 0:02:56]}  c5 {[%clk 0:02:36]} 7. g4 {[%clk 0:02:56]}  Nc6 {[%clk 0:02:32]} 8. g5 {[%clk 0:02:55]}  Nd5 {[%clk 0:02:26]} 9. Nxe4 {[%clk 0:02:56]}  Rg8 {[%clk 0:02:17]} 10. h4 {[%clk 0:02:55]}  Qc7 {[%clk 0:02:14]} 11. Nf3 {[%clk 0:02:53]}  Bd7 {[%clk 0:02:11]} 12. Kb1 {[%clk 0:02:33]}  O-O-O {[%clk 0:02:10]} 13. d3 {[%clk 0:02:24]}  Kb8 {[%clk 0:02:10]} 14. Rg1 {[%clk 0:02:23]}  Ka8 {[%clk 0:02:09]} 15. Qd2 {[%clk 0:02:21]}  Bc8 {[%clk 0:01:48]} 16. Bg2 {[%clk 0:02:18]}  f6 {[%clk 0:01:47]} 17. Bh1 {[%clk 0:02:12]}  f5 {[%clk 0:01:42]} 18. Nc3 {[%clk 0:02:04]}  Nxc3+ {[%clk 0:01:02]} 19. Bxc3 {[%clk 0:02:01]}  Nd4 {[%clk 0:01:02]} 20. Rde1 {[%clk 0:01:56]}  Nxf3 {[%clk 0:00:37]} 21. Bxf3 {[%clk 0:01:55]}  Qd7 {[%clk 0:00:34]} 22. Qe3 {[%clk 0:01:54]}  Qb5 {[%clk 0:00:24]} 23. Be5 {[%clk 0:01:49]}  Bd7 {[%clk 0:00:23]} 24. Qd2 {[%clk 0:01:46]}  Bc6 {[%clk 0:00:20]} 25. Qe3 {[%clk 0:01:42]}  Bd5 {[%clk 0:00:18]} 26. c4 {[%clk 0:01:40]}  Qc6 {[%clk 0:00:13]} 27. cxd5 {[%clk 0:01:40]}  exd5 {[%clk 0:00:14]} 28. Qf4 {[%clk 0:01:40]}  g6 {[%clk 0:00:12]} 29. Bb2 {[%clk 0:01:33]}  Rge8 {[%clk 0:00:13]} 30. Qc1 {[%clk 0:01:28]}  Qd6 {[%clk 0:00:09]} 31. Be5 {[%clk 0:01:29]}  Qd7 {[%clk 0:00:09]} 32. Re2 {[%clk 0:01:27]}  Rc8 {[%clk 0:00:06]} 33. Rge1 {[%clk 0:01:28]}  c4 {[%clk 0:00:05]} 34. dxc4 {[%clk 0:01:28]}  dxc4 {[%clk 0:00:06]} 35. bxc4 {[%clk 0:01:26]}  Qa4 {[%clk 0:00:06]} 36. Rb2 {[%clk 0:01:24]} 1-0


[Site "https://www.chess.com"]

[Event "Titled Tuesday Blitz February 21 Early 2023"]
[White "Aarav Dengla"]
[Black "Mendez Machado, Andre"]
[WhiteFideId "45059756"]
[BlackFideId "6603793"]
[WhiteElo "2343"]
[BlackElo "1974"]
[Result "1/2-1/2"]
[Round "02"]
[TimeControl "180+2"]
[Date "2023.02.21"]
[WhiteClock "0:00:07"]
[BlackClock "0:00:03"]

1. e4 {[%clk 0:03:00]}  e5 {[%clk 0:02:59]} 2. Nf3 {[%clk 0:02:56]}  Nc6 {[%clk 0:03:00]} 3. Bc4 {[%clk 0:02:56]}  Bc5 {[%clk 0:02:59]} 4. c3 {[%clk 0:02:55]}  Nf6 {[%clk 0:02:59]} 5. d4 {[%clk 0:02:54]}  exd4 {[%clk 0:03:00]} 6. e5 {[%clk 0:02:54]}  d5 {[%clk 0:02:57]} 7. Bb5 {[%clk 0:02:34]}  Ne4 {[%clk 0:02:50]} 8. cxd4 {[%clk 0:02:33]}  Bb6 {[%clk 0:02:49]} 9. Nc3 {[%clk 0:02:31]}  Bg4 {[%clk 0:02:47]} 10. Be3 {[%clk 0:02:23]}  O-O {[%clk 0:02:44]} 11. h3 {[%clk 0:02:22]}  Bxf3 {[%clk 0:02:24]} 12. gxf3 {[%clk 0:02:13]}  Nxc3 {[%clk 0:02:17]} 13. bxc3 {[%clk 0:02:14]}  Qh4 {[%clk 0:02:04]} 14. Qd2 {[%clk 0:02:05]}  f6 {[%clk 0:01:18]} 15. O-O-O {[%clk 0:01:41]}  fxe5 {[%clk 0:01:12]} 16. dxe5 {[%clk 0:01:38]}  Nxe5 {[%clk 0:01:00]} 17. Qxd5+ {[%clk 0:01:30]}  Nf7 {[%clk 0:01:00]} 18. Rdg1 {[%clk 0:00:57]}  c6 {[%clk 0:00:51]} 19. Rg4 {[%clk 0:00:21]}  Qf6 {[%clk 0:00:44]} 20. Qb3 {[%clk 0:00:16]}  cxb5 {[%clk 0:00:31]} 21. Rhg1 {[%clk 0:00:14]}  Bxe3+ {[%clk 0:00:20]} 22. fxe3 {[%clk 0:00:15]}  g6 {[%clk 0:00:20]} 23. h4 {[%clk 0:00:14]}  Rac8 {[%clk 0:00:19]} 24. Kb2 {[%clk 0:00:13]}  Qxf3 {[%clk 0:00:12]} 25. h5 {[%clk 0:00:09]}  Qf2+ {[%clk 0:00:13]} 26. Kb1 {[%clk 0:00:08]}  g5 {[%clk 0:00:10]} 27. Rxg5+ {[%clk 0:00:07]}  Kh8 {[%clk 0:00:11]} 28. R5g2 {[%clk 0:00:05]}  Qxe3 {[%clk 0:00:10]} 29. Qxb5 {[%clk 0:00:05]}  Qe4+ {[%clk 0:00:10]} 30. Ka1 {[%clk 0:00:04]}  Qe5 {[%clk 0:00:09]} 31. Qb2 {[%clk 0:00:05]}  Qxc3 {[%clk 0:00:09]} 32. Qxc3+ {[%clk 0:00:05]}  Rxc3 {[%clk 0:00:10]} 33. Kb2 {[%clk 0:00:05]}  Rcc8 {[%clk 0:00:10]} 34. Rd2 {[%clk 0:00:05]}  h6 {[%clk 0:00:10]} 35. Rg6 {[%clk 0:00:04]}  Kh7 {[%clk 0:00:09]} 36. Rd7 {[%clk 0:00:04]}  Rcd8 {[%clk 0:00:09]} 37. Rxb7 {[%clk 0:00:03]}  Rb8 {[%clk 0:00:10]} 38. Rxb8 {[%clk 0:00:02]}  Rxb8+ {[%clk 0:00:11]} 39. Kc3 {[%clk 0:00:03]}  Rb6 {[%clk 0:00:11]} 40. Rg4 {[%clk 0:00:02]}  Ra6 {[%clk 0:00:09]} 41. a4 {[%clk 0:00:01]}  Ng5 {[%clk 0:00:09]} 42. Rh4 {[%clk 0:00:02]}  Kg7 {[%clk 0:00:08]} 43. Kb4 {[%clk 0:00:03]}  Kf6 {[%clk 0:00:08]} 44. Rf4+ {[%clk 0:00:03]}  Ke5 {[%clk 0:00:07]} 45. Rf8 {[%clk 0:00:04]}  Ne4 {[%clk 0:00:06]} 46. Rf7 {[%clk 0:00:02]}  Nf6 {[%clk 0:00:05]} 47. Kb5 {[%clk 0:00:02]}  Rb6+ {[%clk 0:00:05]} 48. Ka5 {[%clk 0:00:02]}  Nxh5 {[%clk 0:00:05]} 49. Rxa7 {[%clk 0:00:03]}  Rg6 {[%clk 0:00:05]} 50. Kb5 {[%clk 0:00:03]}  Nf4 {[%clk 0:00:05]} 51. a5 {[%clk 0:00:03]}  h5 {[%clk 0:00:05]} 52. Rh7 {[%clk 0:00:04]}  Kf5 {[%clk 0:00:05]} 53. a6 {[%clk 0:00:04]}  Kg4 {[%clk 0:00:04]} 54. a7 {[%clk 0:00:05]}  Rg8 {[%clk 0:00:04]} 55. Kb6 {[%clk 0:00:05]}  h4 {[%clk 0:00:04]} 56. Kb7 {[%clk 0:00:05]}  h3 {[%clk 0:00:04]} 57. Rxh3 {[%clk 0:00:05]}  Nxh3 {[%clk 0:00:03]} 58. a8=Q {[%clk 0:00:06]}  Rxa8 {[%clk 0:00:03]} 59. Kxa8 {[%clk 0:00:07]} 1/2-1/2


[Site "https://www.chess.com"]

[Event "Titled Tuesday Blitz February 21 Early 2023"]
[White "Mazurkiewicz, Michal"]
[Black "Kohler, Aran"]
[WhiteFideId "1124943"]
[BlackFideId "1002856"]
[WhiteElo "2145"]
[BlackElo "2010"]
[Result "1-0"]
[Round "02"]
[TimeControl "180+2"]
[Date "2023.02.21"]
[WhiteClock "0:01:21"]
[BlackClock "0:00:28"]

1. e4 {[%clk 0:03:00]}  c6 {[%clk 0:02:59]} 2. d3 {[%clk 0:03:00]}  d5 {[%clk 0:02:59]} 3. Nd2 {[%clk 0:03:00]}  e5 {[%clk 0:02:59]} 4. Ngf3 {[%clk 0:03:00]}  Bd6 {[%clk 0:02:58]} 5. d4 {[%clk 0:03:00]}  exd4 {[%clk 0:02:52]} 6. exd5 {[%clk 0:02:56]}  c5 {[%clk 0:02:46]} 7. Ne4 {[%clk 0:02:51]}  a6 {[%clk 0:02:32]} 8. Bd3 {[%clk 0:02:45]}  Ne7 {[%clk 0:02:28]} 9. O-O {[%clk 0:02:24]}  h6 {[%clk 0:02:09]} 10. b4 {[%clk 0:02:21]}  cxb4 {[%clk 0:02:03]} 11. a3 {[%clk 0:02:20]}  O-O {[%clk 0:02:00]} 12. Nxd6 {[%clk 0:02:11]}  Qxd6 {[%clk 0:01:59]} 13. axb4 {[%clk 0:02:12]}  Qxd5 {[%clk 0:01:51]} 14. c4 {[%clk 0:02:08]}  Qd8 {[%clk 0:01:38]} 15. b5 {[%clk 0:02:04]}  Bg4 {[%clk 0:01:30]} 16. Be4 {[%clk 0:01:48]}  Ng6 {[%clk 0:01:20]} 17. Qxd4 {[%clk 0:01:33]}  Nd7 {[%clk 0:01:09]} 18. Bxb7 {[%clk 0:01:29]}  Rb8 {[%clk 0:00:53]} 19. bxa6 {[%clk 0:01:29]}  Qc7 {[%clk 0:00:49]} 20. Qxg4 {[%clk 0:01:29]}  Nge5 {[%clk 0:00:39]} 21. Nxe5 {[%clk 0:01:27]}  Nxe5 {[%clk 0:00:38]} 22. Qg3 {[%clk 0:01:27]}  Qc5 {[%clk 0:00:28]} 23. Ba3 {[%clk 0:01:21]} 1-0


[Site "https://www.chess.com"]

[Event "Titled Tuesday Blitz February 21 Early 2023"]
[White "Aslanov, Umid"]
[Black "Thomas, Anysia"]
[WhiteFideId "13412620"]
[BlackFideId "670472"]
[WhiteElo "2273"]
[BlackElo "2147"]
[Result "1-0"]
[Round "02"]
[TimeControl "180+2"]
[Date "2023.02.21"]
[WhiteClock "0:01:10"]
[BlackClock "0:00:01"]

1. e4 {[%clk 0:03:00]}  c5 {[%clk 0:02:59]} 2. Nf3 {[%clk 0:03:01]}  g6 {[%clk 0:03:00]} 3. d4 {[%clk 0:03:02]}  cxd4 {[%clk 0:03:01]} 4. Nxd4 {[%clk 0:03:02]}  Nc6 {[%clk 0:03:01]} 5. Nc3 {[%clk 0:03:02]}  Bg7 {[%clk 0:03:01]} 6. Be3 {[%clk 0:03:03]}  Nf6 {[%clk 0:03:01]} 7. Be2 {[%clk 0:03:03]}  O-O {[%clk 0:03:01]} 8. O-O {[%clk 0:03:03]}  d5 {[%clk 0:03:01]} 9. exd5 {[%clk 0:03:03]}  Nxd5 {[%clk 0:03:02]} 10. Nxc6 {[%clk 0:03:04]}  bxc6 {[%clk 0:03:02]} 11. Nxd5 {[%clk 0:03:04]}  cxd5 {[%clk 0:03:01]} 12. c3 {[%clk 0:03:04]}  e5 {[%clk 0:02:51]} 13. Bf3 {[%clk 0:03:04]}  Be6 {[%clk 0:02:50]} 14. Qd2 {[%clk 0:03:03]}  Qa5 {[%clk 0:02:20]} 15. Rfd1 {[%clk 0:03:01]}  Rfd8 {[%clk 0:02:15]} 16. Bh6 {[%clk 0:02:59]}  Bh8 {[%clk 0:01:52]} 17. h4 {[%clk 0:02:52]}  Rab8 {[%clk 0:01:50]} 18. h5 {[%clk 0:02:52]}  Qb6 {[%clk 0:01:41]} 19. hxg6 {[%clk 0:02:52]}  hxg6 {[%clk 0:01:38]} 20. Bg5 {[%clk 0:02:51]}  f6 {[%clk 0:01:27]} 21. Bh4 {[%clk 0:02:46]}  Qxb2 {[%clk 0:01:25]} 22. Qh6 {[%clk 0:02:45]}  Kf7 {[%clk 0:01:15]} 23. Qe3 {[%clk 0:02:10]}  d4 {[%clk 0:00:43]} 24. cxd4 {[%clk 0:02:11]}  Rxd4 {[%clk 0:00:43]} 25. Rxd4 {[%clk 0:02:03]}  Qxd4 {[%clk 0:00:37]} 26. Qxd4 {[%clk 0:01:56]}  exd4 {[%clk 0:00:38]} 27. Rd1 {[%clk 0:01:56]}  Rd8 {[%clk 0:00:26]} 28. a3 {[%clk 0:01:52]}  g5 {[%clk 0:00:22]} 29. Bg3 {[%clk 0:01:52]}  f5 {[%clk 0:00:22]} 30. Bh5+ {[%clk 0:01:52]}  Kf6 {[%clk 0:00:20]} 31. f4 {[%clk 0:01:52]}  g4 {[%clk 0:00:18]} 32. Bh4+ {[%clk 0:01:53]}  Kg7 {[%clk 0:00:15]} 33. Bxd8 {[%clk 0:01:54]}  Kh6 {[%clk 0:00:16]} 34. Be8 {[%clk 0:01:53]}  Bb3 {[%clk 0:00:14]} 35. Rd2 {[%clk 0:01:53]}  Bc4 {[%clk 0:00:13]} 36. g3 {[%clk 0:01:52]}  d3 {[%clk 0:00:13]} 37. Rh2+ {[%clk 0:01:52]}  Kg7 {[%clk 0:00:12]} 38. Ba5 {[%clk 0:01:45]}  Kg8 {[%clk 0:00:11]} 39. Bc6 {[%clk 0:01:34]}  Bd4+ {[%clk 0:00:10]} 40. Kh1 {[%clk 0:01:34]}  Kg7 {[%clk 0:00:08]} 41. Rd2 {[%clk 0:01:31]}  Kf6 {[%clk 0:00:07]} 42. Kg2 {[%clk 0:01:27]}  Be3 {[%clk 0:00:07]} 43. Rd1 {[%clk 0:01:28]}  a6 {[%clk 0:00:02]} 44. Bc3+ {[%clk 0:01:23]}  Kf7 {[%clk 0:00:02]} 45. a4 {[%clk 0:01:19]}  Bc5 {[%clk 0:00:02]} 46. a5 {[%clk 0:01:18]}  Ke6 {[%clk 0:00:02]} 47. Bb7 {[%clk 0:01:15]}  Kd6 {[%clk 0:00:02]} 48. Be5+ {[%clk 0:01:14]}  Kd7 {[%clk 0:00:01]} 49. Kf1 {[%clk 0:01:14]}  Bb4 {[%clk 0:00:01]} 50. Kf2 {[%clk 0:01:10]} 1-0


[Site "https://www.chess.com"]

[Event "Titled Tuesday Blitz February 21 Early 2023"]
[White "Shohat, Yotam"]
[Black "Simonovic, Miroslav"]
[WhiteFideId "2813955"]
[BlackFideId "919152"]
[WhiteElo "2346"]
[BlackElo "2082"]
[Result "1-0"]
[Round "02"]
[TimeControl "180+2"]
[Date "2023.02.21"]
[WhiteClock "0:00:10"]
[BlackClock "0:00:42"]

1. d4 {[%clk 0:03:00]}  Nf6 {[%clk 0:02:56]} 2. c4 {[%clk 0:02:58]}  c5 {[%clk 0:02:57]} 3. d5 {[%clk 0:02:57]}  b5 {[%clk 0:02:58]} 4. cxb5 {[%clk 0:02:56]}  a6 {[%clk 0:02:58]} 5. e3 {[%clk 0:02:56]}  axb5 {[%clk 0:02:58]} 6. Bxb5 {[%clk 0:02:57]}  Bb7 {[%clk 0:02:58]} 7. Nc3 {[%clk 0:02:55]}  Qa5 {[%clk 0:02:58]} 8. Bc4 {[%clk 0:02:30]}  e6 {[%clk 0:02:53]} 9. Bd2 {[%clk 0:02:08]}  Qb6 {[%clk 0:02:32]} 10. Qf3 {[%clk 0:00:49]}  Be7 {[%clk 0:01:59]} 11. e4 {[%clk 0:00:45]}  O-O {[%clk 0:01:47]} 12. Nge2 {[%clk 0:00:45]}  exd5 {[%clk 0:01:33]} 13. exd5 {[%clk 0:00:42]}  d6 {[%clk 0:01:23]} 14. b3 {[%clk 0:00:36]}  Nbd7 {[%clk 0:01:23]} 15. Qg3 {[%clk 0:00:30]}  Kh8 {[%clk 0:01:14]} 16. O-O {[%clk 0:00:29]}  Ba6 {[%clk 0:01:14]} 17. Rab1 {[%clk 0:00:20]}  Bxc4 {[%clk 0:01:13]} 18. bxc4 {[%clk 0:00:21]}  Qa6 {[%clk 0:01:13]} 19. Rb5 {[%clk 0:00:16]}  Ne5 {[%clk 0:01:12]} 20. Qf4 {[%clk 0:00:12]}  h6 {[%clk 0:01:01]} 21. Rfb1 {[%clk 0:00:12]}  Nfd7 {[%clk 0:00:59]} 22. h4 {[%clk 0:00:10]}  Rfb8 {[%clk 0:00:49]} 23. g3 {[%clk 0:00:06]}  Kg8 {[%clk 0:00:37]} 24. Kg2 {[%clk 0:00:07]}  Ng6 {[%clk 0:00:37]} 25. Qf5 {[%clk 0:00:05]}  Nde5 {[%clk 0:00:36]} 26. h5 {[%clk 0:00:05]}  Nf8 {[%clk 0:00:35]} 27. Qe4 {[%clk 0:00:04]}  Bf6 {[%clk 0:00:35]} 28. Rxb8 {[%clk 0:00:04]}  Rxb8 {[%clk 0:00:34]} 29. Rxb8 {[%clk 0:00:05]}  Qa7 {[%clk 0:00:34]} 30. Rb1 {[%clk 0:00:03]}  Qa6 {[%clk 0:00:34]} 31. Nb5 {[%clk 0:00:03]}  Nxc4 {[%clk 0:00:32]} 32. Qxc4 {[%clk 0:00:03]}  Nd7 {[%clk 0:00:33]} 33. Nxd6 {[%clk 0:00:02]}  Qxd6 {[%clk 0:00:33]} 34. Bf4 {[%clk 0:00:02]}  Be5 {[%clk 0:00:31]} 35. Qe4 {[%clk 0:00:03]}  Bxf4 {[%clk 0:00:31]} 36. Qxf4 {[%clk 0:00:03]}  Qe7 {[%clk 0:00:31]} 37. Qf3 {[%clk 0:00:04]}  Nf6 {[%clk 0:00:31]} 38. Rd1 {[%clk 0:00:05]}  Kh7 {[%clk 0:00:31]} 39. d6 {[%clk 0:00:05]}  Qd7 {[%clk 0:00:32]} 40. Nf4 {[%clk 0:00:05]}  c4 {[%clk 0:00:33]} 41. Nd5 {[%clk 0:00:04]}  Ng4 {[%clk 0:00:32]} 42. Qe4+ {[%clk 0:00:03]}  Kg8 {[%clk 0:00:32]} 43. Ne7+ {[%clk 0:00:02]}  Kf8 {[%clk 0:00:32]} 44. Nf5 {[%clk 0:00:03]}  Nf6 {[%clk 0:00:32]} 45. Qe7+ {[%clk 0:00:03]}  Qxe7 {[%clk 0:00:32]} 46. dxe7+ {[%clk 0:00:04]}  Kg8 {[%clk 0:00:32]} 47. Rd8+ {[%clk 0:00:04]}  Kh7 {[%clk 0:00:32]} 48. e8=Q {[%clk 0:00:05]}  Nxe8 {[%clk 0:00:33]} 49. Rxe8 {[%clk 0:00:06]}  g6 {[%clk 0:00:34]} 50. hxg6+ {[%clk 0:00:06]}  fxg6 {[%clk 0:00:35]} 51. Re7+ {[%clk 0:00:07]}  Kg8 {[%clk 0:00:35]} 52. Nd4 {[%clk 0:00:07]}  Kf8 {[%clk 0:00:35]} 53. Rc7 {[%clk 0:00:08]}  c3 {[%clk 0:00:36]} 54. Rxc3 {[%clk 0:00:08]}  g5 {[%clk 0:00:37]} 55. Rf3+ {[%clk 0:00:08]}  Kg7 {[%clk 0:00:37]} 56. g4 {[%clk 0:00:09]}  h5 {[%clk 0:00:38]} 57. Nf5+ {[%clk 0:00:10]}  Kg6 {[%clk 0:00:39]} 58. gxh5+ {[%clk 0:00:10]}  Kxh5 {[%clk 0:00:39]} 59. Ng3+ {[%clk 0:00:09]}  Kg6 {[%clk 0:00:39]} 60. Kh3 {[%clk 0:00:09]}  g4+ {[%clk 0:00:40]} 61. Kxg4 {[%clk 0:00:09]}  Kg7 {[%clk 0:00:41]} 62. Kg5 {[%clk 0:00:09]}  Kg8 {[%clk 0:00:41]} 63. Nh5 {[%clk 0:00:09]}  Kh8 {[%clk 0:00:42]} 64. Kg6 {[%clk 0:00:09]}  Kg8 {[%clk 0:00:42]} 65. Rf4 {[%clk 0:00:09]}  Kh8 {[%clk 0:00:42]} 66. Rf8# {[%clk 0:00:10]} 1-0


[Site "https://www.chess.com"]

[Event "Titled Tuesday Blitz February 21 Early 2023"]
[White "Kuchava, Ana"]
[Black "Kejna, Piotr"]
[WhiteFideId "13605348"]
[BlackFideId "21821704"]
[WhiteElo "2101"]
[BlackElo "2027"]
[Result "1-0"]
[Round "02"]
[TimeControl "180+2"]
[Date "2023.02.21"]
[WhiteClock "0:00:17"]
[BlackClock "0:00:42"]

1. d4 {[%clk 0:03:00]}  Nf6 {[%clk 0:03:00]} 2. Nf3 {[%clk 0:02:58]}  g6 {[%clk 0:03:00]} 3. c4 {[%clk 0:02:57]}  Bg7 {[%clk 0:03:00]} 4. Nc3 {[%clk 0:02:57]}  d6 {[%clk 0:03:01]} 5. e4 {[%clk 0:02:57]}  O-O {[%clk 0:03:01]} 6. Be2 {[%clk 0:02:56]}  e5 {[%clk 0:03:00]} 7. O-O {[%clk 0:02:55]}  Nbd7 {[%clk 0:02:58]} 8. Re1 {[%clk 0:02:54]}  Ne8 {[%clk 0:02:58]} 9. Bf1 {[%clk 0:02:51]}  f5 {[%clk 0:02:41]} 10. exf5 {[%clk 0:02:16]}  gxf5 {[%clk 0:02:38]} 11. Ng5 {[%clk 0:02:15]}  exd4 {[%clk 0:01:53]} 12. Ne6 {[%clk 0:01:44]}  Qf6 {[%clk 0:01:51]} 13. Nd5 {[%clk 0:01:41]}  Qh4 {[%clk 0:01:35]} 14. Nxf8 {[%clk 0:01:41]}  Kxf8 {[%clk 0:01:29]} 15. Rxe8+ {[%clk 0:01:25]}  Kxe8 {[%clk 0:01:29]} 16. Nxc7+ {[%clk 0:01:25]}  Kd8 {[%clk 0:01:28]} 17. Nxa8 {[%clk 0:01:25]}  b6 {[%clk 0:01:19]} 18. Qf3 {[%clk 0:01:01]}  Ne5 {[%clk 0:01:15]} 19. Qg3 {[%clk 0:00:58]}  Qe7 {[%clk 0:01:12]} 20. Bg5 {[%clk 0:00:53]}  Bf6 {[%clk 0:01:12]} 21. Bxf6 {[%clk 0:00:48]}  Qxf6 {[%clk 0:01:13]} 22. Qg8+ {[%clk 0:00:48]}  Kd7 {[%clk 0:01:13]} 23. Qxh7+ {[%clk 0:00:43]}  Nf7 {[%clk 0:01:13]} 24. Bd3 {[%clk 0:00:41]}  Bb7 {[%clk 0:01:10]} 25. Qxf5+ {[%clk 0:00:35]}  Qxf5 {[%clk 0:01:08]} 26. Bxf5+ {[%clk 0:00:36]}  Kd8 {[%clk 0:01:08]} 27. Nxb6 {[%clk 0:00:34]}  axb6 {[%clk 0:01:08]} 28. Rd1 {[%clk 0:00:35]}  Nh6 {[%clk 0:01:05]} 29. Be6 {[%clk 0:00:35]}  Ke7 {[%clk 0:01:05]} 30. Bd5 {[%clk 0:00:34]}  Bxd5 {[%clk 0:01:05]} 31. cxd5 {[%clk 0:00:35]}  Nf5 {[%clk 0:01:03]} 32. g4 {[%clk 0:00:35]}  Nh4 {[%clk 0:01:04]} 33. Kf1 {[%clk 0:00:32]}  Kf6 {[%clk 0:00:59]} 34. Rxd4 {[%clk 0:00:31]}  Ke5 {[%clk 0:01:00]} 35. Rd1 {[%clk 0:00:25]}  Nf3 {[%clk 0:00:59]} 36. Kg2 {[%clk 0:00:22]}  Nh4+ {[%clk 0:00:56]} 37. Kg3 {[%clk 0:00:22]}  Ng6 {[%clk 0:00:56]} 38. h4 {[%clk 0:00:22]}  Kf6 {[%clk 0:00:55]} 39. h5 {[%clk 0:00:21]}  Ne5 {[%clk 0:00:54]} 40. f4 {[%clk 0:00:21]}  Nf7 {[%clk 0:00:53]} 41. g5+ {[%clk 0:00:21]}  Kf5 {[%clk 0:00:54]} 42. Re1 {[%clk 0:00:20]}  b5 {[%clk 0:00:54]} 43. h6 {[%clk 0:00:16]}  b4 {[%clk 0:00:53]} 44. Re6 {[%clk 0:00:16]}  Nh8 {[%clk 0:00:50]} 45. Rf6+ {[%clk 0:00:16]}  Ke4 {[%clk 0:00:50]} 46. g6 {[%clk 0:00:16]}  b3 {[%clk 0:00:50]} 47. g7 {[%clk 0:00:17]}  bxa2 {[%clk 0:00:50]} 48. Re6+ {[%clk 0:00:17]}  Kxd5 {[%clk 0:00:48]} 49. Re1 {[%clk 0:00:18]}  Nf7 {[%clk 0:00:42]} 50. g8=Q {[%clk 0:00:17]}  Kc6 {[%clk 0:00:42]} 51. Qxf7 {[%clk 0:00:17]} 1-0


[Site "https://www.chess.com"]

[Event "Titled Tuesday Blitz February 21 Early 2023"]
[White "Real_taiatai"]
[Black "Tarnowska, Aleksandra"]
[BlackFideId "1180967"]
[WhiteElo "2442"]
[BlackElo "1835"]
[Result "1-0"]
[Round "02"]
[TimeControl "180+2"]
[Date "2023.02.21"]
[WhiteClock "0:00:27"]
[BlackClock "0:00:03"]

1. d4 {[%clk 0:03:00]}  d5 {[%clk 0:03:00]} 2. c4 {[%clk 0:03:01]}  e6 {[%clk 0:03:00]} 3. g3 {[%clk 0:03:01]}  Nf6 {[%clk 0:03:01]} 4. Bg2 {[%clk 0:03:02]}  Bb4+ {[%clk 0:03:01]} 5. Nd2 {[%clk 0:03:01]}  Be7 {[%clk 0:03:02]} 6. Ngf3 {[%clk 0:03:01]}  O-O {[%clk 0:03:01]} 7. O-O {[%clk 0:03:01]}  dxc4 {[%clk 0:02:57]} 8. Nxc4 {[%clk 0:03:01]}  c5 {[%clk 0:02:52]} 9. dxc5 {[%clk 0:02:56]}  Bxc5 {[%clk 0:02:51]} 10. Bf4 {[%clk 0:02:54]}  Nc6 {[%clk 0:02:33]} 11. Qc2 {[%clk 0:02:49]}  Nd5 {[%clk 0:02:07]} 12. Rfd1 {[%clk 0:02:47]}  Qe7 {[%clk 0:02:04]} 13. Nfe5 {[%clk 0:02:34]}  Nxf4 {[%clk 0:01:32]} 14. Nxc6 {[%clk 0:02:31]}  bxc6 {[%clk 0:00:48]} 15. gxf4 {[%clk 0:02:30]}  Qh4 {[%clk 0:00:38]} 16. e3 {[%clk 0:02:30]}  Ba6 {[%clk 0:00:20]} 17. Ne5 {[%clk 0:02:24]}  Bb6 {[%clk 0:00:14]} 18. Qxc6 {[%clk 0:02:06]}  Rac8 {[%clk 0:00:13]} 19. Qa4 {[%clk 0:02:05]}  Be2 {[%clk 0:00:12]} 20. Rd2 {[%clk 0:02:03]}  Bh5 {[%clk 0:00:11]} 21. Nd7 {[%clk 0:01:18]}  Rfe8 {[%clk 0:00:02]} 22. Nxb6 {[%clk 0:01:18]}  axb6 {[%clk 0:00:03]} 23. Qb5 {[%clk 0:00:57]}  Qg4 {[%clk 0:00:02]} 24. Qxb6 {[%clk 0:00:50]}  Qg6 {[%clk 0:00:03]} 25. Kh1 {[%clk 0:00:48]}  Rc2 {[%clk 0:00:03]} 26. Rxc2 {[%clk 0:00:28]}  Qxc2 {[%clk 0:00:04]} 27. Qc6 {[%clk 0:00:27]}  Rf8 {[%clk 0:00:03]} 28. Qxc2 {[%clk 0:00:27]} 1-0


[Site "https://www.chess.com"]